bitfinex/quotes_BTCUSD_20260307
["timestamp","ask_amount","ask_price","bid_price","bid_amount"]
[1772865768858,0.00148,67887.0,67880.0,0.01437059]
[1772865770043,0.00022001,67888.0,67880.0,0.01437059]
[1772865770314,0.00148,67887.0,67880.0,0.01437059]
[1772865770658,0.00170001,67887.0,67880.0,0.01437059]
[1772865770857,0.00170001,67887.0,67881.0,0.0880289]
[1772865771767,0.00170001,67887.0,67882.0,0.01437059]
[1772865772732,0.00170001,67887.0,67884.0,0.01437059]
[1772865774956,0.00170001,67887.0,67884.0,0.088025]
[1772865775453,0.00148,67888.0,67885.0,0.01437059]
[1772865777308,0.00015,67892.0,67885.0,0.07365358]
[1772865777460,0.00163,67892.0,67886.0,0.01437059]
[1772865777885,0.00015,67892.0,67886.0,0.01437059]
[1772865778070,0.00148,67891.0,67886.0,0.01437059]
[1772865778268,0.00022001,67888.0,67886.0,0.01437059]
[1772865778469,0.00148,67891.0,67886.0,0.01437059]
[1772865779326,0.07364854,67890.0,67879.0,0.00011557]
[1772865782917,0.07512854,67891.0,67879.0,0.01499918]
[1772865783604,0.07512854,67891.0,67881.0,0.01488361]
[1772865785114,0.00148,67891.0,67881.0,0.01488361]
[1772865785313,0.00148,67891.0,67882.0,0.01488361]
[1772865785513,0.00148,67891.0,67883.0,0.07365614]
[1772865785739,0.00148,67890.0,67884.0,0.01488361]
[1772865786675,0.07512854,67890.0,67884.0,0.01488361]
[1772865787027,0.07111223,67889.0,67879.0,0.00011557]
[1772865787722,0.07365071,67888.0,67879.0,0.00011557]
[1772865790954,0.07365071,67889.0,67879.0,0.00011557]
[1772865791168,0.00148,67888.0,67879.0,0.00010124]
[1772865791361,0.00148,67888.0,67879.0,8.69e-05]
[1772865791711,0.00148,67888.0,67879.0,0.07374738]
[1772865792316,0.07513074,67888.0,67879.0,0.07374738]
[1772865792722,0.07365071,67889.0,67879.0,0.07374738]
[1772865792723,0.07386784,67891.0,67879.0,0.07374738]
[1772865792945,0.00148,67890.0,67879.0,0.08729043]
[1772865793568,0.00148,67890.0,67879.0,0.08749043]
[1772865794071,0.00022001,67888.0,67879.0,0.08749043]
[1772865796916,0.00022001,67888.0,67879.0,0.07394738]
[1772865797089,0.00022001,67888.0,67880.0,0.01354305]
[1772865797739,0.00148,67887.0,67880.0,0.01354305]
[1772865799049,0.00148,67887.0,67881.0,0.07365831]
[1772865807297,0.00022001,67888.0,67881.0,0.07365831]
[1772865807514,0.00170001,67888.0,67881.0,0.07365831]
[1772865808273,0.00022001,67888.0,67881.0,0.07365831]
[1772865808477,0.00148,67887.0,67881.0,0.07365831]
[1772865808711,0.00022001,67888.0,67881.0,0.07365831]
[1772865812535,0.00148,67890.0,67881.0,0.07365831]
[1772865814003,0.00022001,67891.0,67881.0,0.07365831]
[1772865814199,0.00022001,67891.0,67881.0,0.08720136]
[1772865814968,0.00022001,67888.0,67881.0,0.08720136]
[1772865815179,0.00022001,67891.0,67881.0,0.08720136]
[1772865816040,0.00022001,67891.0,67881.0,0.08820136]
[1772865816336,0.00022001,67891.0,67881.0,0.08720136]
[1772865820988,0.00170001,67891.0,67881.0,0.08720136]
[1772865823926,1e-08,67891.0,67883.0,0.0650579]
[1772865824070,0.00022001,67894.0,67885.0,0.01322174]
[1772865824274,0.00022001,67895.0,67887.0,0.01322174]
[1772865825842,0.00022001,67895.0,67888.0,0.07365071]
[1772865830803,0.00062001,67900.0,67888.0,0.07365071]
[1772865831033,0.07385565,67902.0,67888.0,0.07365071]
[1772865831034,0.00022001,67902.0,67892.0,0.0650579]
[1772865831160,0.00022001,67902.0,67892.0,0.07827964]
[1772865833337,0.00022001,67902.0,67893.0,0.07364529]
[1772865833687,0.01351288,67902.0,67893.0,0.07364529]
[1772865833888,0.01329287,67900.0,67888.0,0.0736503]
[1772865834036,0.01329287,67898.0,67888.0,0.0736503]
[1772865834688,0.00148,67897.0,67888.0,0.0736503]
[1772865834893,0.01477287,67897.0,67888.0,0.0736503]
[1772865835087,0.01477287,67897.0,67892.0,0.001]
[1772865835292,0.01477287,67897.0,67893.0,0.001]
[1772865835496,0.01477287,67897.0,67892.0,0.0746453]
[1772865835497,0.01477287,67897.0,67892.0,0.0736453]
[1772865835804,0.0016033,67897.0,67892.0,0.0736453]
[1772865837356,0.0016033,67897.0,67885.0,0.0736518]
[1772865840741,0.0016033,67897.0,67885.0,0.08674884]
[1772865842181,0.01271224,67896.0,67885.0,0.0751318]
[1772865842490,0.00235224,67896.0,67885.0,0.0751318]
[1772865842780,0.0001233,67896.0,67885.0,0.0751318]
[1772865842983,0.00109226,67897.0,67885.0,0.0736518]
[1772865843143,0.00109226,67897.0,67885.0,0.0751318]
[1772865845141,0.00109226,67897.0,67885.0,0.08822884]
[1772865850701,0.00022001,67897.0,67886.0,0.01280375]
[1772865850931,0.00022001,67897.0,67887.0,0.0736518]
[1772865851256,0.00022001,67897.0,67887.0,0.08645555]
[1772865855764,0.00148,67898.0,67888.0,0.01280375]
[1772865857558,0.07399045,67902.0,67889.0,0.07364963]
[1772865857768,0.14726371,67909.0,67889.0,0.07364963]
[1772865857769,0.14726371,67909.0,67891.0,0.06201477]
[1772865857991,0.14726371,67909.0,67889.0,0.07364963]
[1772865857992,1e-08,67905.0,67895.0,0.06201477]
[1772865858185,1e-08,67905.0,67897.0,0.01280375]
[1772865858712,0.00022001,67904.0,67897.0,0.01280375]
[1772865859509,0.00022001,67904.0,67897.0,0.06201477]
[1772865859714,1e-08,67905.0,67899.0,0.07363878]
[1772865859910,1e-08,67905.0,67900.0,0.01280375]
[1772865860910,0.00050491,67909.0,67901.0,0.01280375]
[1772865861115,0.00038535,67909.0,67901.0,0.01280375]
[1772865861888,0.00038535,67909.0,67902.0,0.07363553]
[1772865862768,0.0058849,67916.0,67902.0,0.07363553]
[1772865862988,0.00600046,67916.0,67903.0,0.01280375]
[1772865864117,0.00600046,67916.0,67904.0,0.07363336]
[1772865864334,0.00600046,67916.0,67904.0,0.08643711]
[1772865865274,0.07360887,67927.0,67904.0,0.08643711]
[1772865865275,0.1908188,67937.0,67908.0,0.06201477]
[1772865865495,0.00148,67932.0,67911.0,0.01280375]
[1772865865658,0.13772677,67936.0,67908.0,0.00011556]
[1772865865659,0.00022001,67923.0,67912.0,0.00148]
[1772865865858,0.0137555,67923.0,67912.0,0.00148]
[1772865866262,0.00022001,67923.0,67914.0,0.01280375]
[1772865866494,0.00022001,67923.0,67915.0,0.01280375]
[1772865866848,0.00022001,67930.0,67915.0,0.01280375]
[1772865867048,0.00148,67929.0,67917.0,0.06201477]
[1772865867247,0.00148,67929.0,67918.0,0.01280375]
[1772865867449,0.00022001,67930.0,67918.0,0.01280375]
[1772865867821,0.00022001,67930.0,67913.0,0.0736236]
[1772865867822,0.07382555,67930.0,67913.0,0.0736236]
[1772865868046,0.01353549,67928.0,67914.0,0.00148]
[1772865868246,0.01353549,67928.0,67915.0,0.07362143]
[1772865868424,0.01353549,67928.0,67915.0,0.08642518]
[1772865868653,0.00015,67926.0,67915.0,0.08790518]
[1772865873305,0.00037001,67926.0,67915.0,0.08790518]
[1772865874933,0.00022001,67930.0,67915.0,0.07510143]
[1772865875251,0.00022001,67930.0,67916.0,0.01280375]
[1772865875903,0.01353549,67929.0,67916.0,0.01280375]
[1772865876045,0.05890911,67929.0,67915.0,0.07510143]
[1772865876246,0.01353549,67928.0,67915.0,0.07510143]
[1772865876447,0.01353549,67928.0,67915.0,0.07362143]
[1772865876633,0.01353549,67928.0,67916.0,0.00148]
[1772865878190,0.01353549,67928.0,67917.0,0.07361927]
[1772865881674,0.0137555,67928.0,67917.0,0.07361927]
[1772865884176,0.05890911,67926.0,67917.0,0.07361927]
[1772865884374,0.00013177,67925.0,67917.0,0.07361927]
[1772865884574,0.13251886,67926.0,67917.0,0.07361927]
[1772865884780,0.07360845,67927.0,67917.0,0.07361927]
[1772865885735,0.07382844,67928.0,67917.0,0.07361927]
[1772865886563,0.00022001,67928.0,67917.0,0.07361927]
[1772865886969,0.00022001,67928.0,67918.0,0.01267399]
[1772865888854,0.00022001,67928.0,67919.0,0.0736171]
[1772865890013,0.00022001,67928.0,67920.0,0.01267399]
[1772865891154,0.00022001,67928.0,67921.0,0.07361493]
[1772865895305,0.00022001,67928.0,67918.0,0.07361814]
[1772865898531,0.00022001,67928.0,67918.0,0.07381814]
[1772865901633,0.07382754,67928.0,67918.0,0.07381814]
[1772865901840,0.00854097,67928.0,67918.0,0.0002]
[1772865902060,0.00832096,67926.0,67917.0,0.07361927]
[1772865902308,0.00022001,67928.0,67917.0,0.07361927]
[1772865902486,0.00022001,67928.0,67917.0,0.08595219]
[1772865903444,0.00022001,67928.0,67917.0,0.07361927]
[1772865903636,0.00022001,67928.0,67918.0,0.01233292]
[1772865904114,0.00022001,67928.0,67919.0,0.0736171]
[1772865906459,0.00022001,67928.0,67917.0,0.07361927]
[1772865907176,0.00022001,67928.0,67918.0,0.0002]
[1772865909389,0.00820158,67944.0,67920.0,0.01230147]
[1772865909713,0.00148,67942.0,67925.0,0.01230147]
[1772865909886,0.00820158,67944.0,67927.0,0.01230147]
[1772865910087,0.00148,67941.0,67927.0,0.01378147]
[1772865910880,0.07375062,67947.0,67929.0,0.01230147]
[1772865911158,0.07375062,67947.0,67931.0,0.01230147]
[1772865911159,0.00148,67944.0,67931.0,0.01230147]
[1772865911352,0.0001635,67947.0,67931.0,0.05593135]
[1772865911631,0.0001635,67947.0,67932.0,0.01230147]
[1772865911632,0.00148,67946.0,67932.0,0.01230147]
[1772865912020,0.00601554,67943.0,67932.0,0.01230147]
[1772865913205,0.00601554,67943.0,67933.0,0.07360193]
[1772865915351,0.00601554,67943.0,67933.0,0.0859034]
[1772865915548,0.002,67950.0,67933.0,0.07360193]
[1772865915780,0.00148,67949.0,67935.0,0.01233429]
[1772865916001,0.05815356,67948.0,67933.0,0.07371747]
[1772865916198,0.00022001,67943.0,67933.0,0.07371747]
[1772865917441,0.00022001,67943.0,67933.0,0.07379987]
[1772865917924,0.00022001,67943.0,67927.0,0.01250819]
[1772865917925,0.05815356,67938.0,67925.0,0.07361059]
[1772865918135,0.06676507,67936.0,67925.0,0.07361059]
[1772865918427,0.00861151,67936.0,67925.0,0.07361059]
[1772865918588,0.00011543,67938.0,67925.0,0.07509059]
[1772865918796,0.00011543,67938.0,67925.0,0.08739206]
[1772865920327,0.00011543,67938.0,67926.0,0.05593135]
[1772865920656,0.00011543,67938.0,67929.0,0.01230147]
[1772865920851,0.00011543,67938.0,67930.0,0.01230147]
[1772865921211,0.00011543,67938.0,67931.0,0.01378147]
[1772865921668,0.00022001,67943.0,67931.0,0.05741135]
[1772865921871,0.00022001,67943.0,67934.0,0.01230147]
[1772865922169,0.00022001,67943.0,67935.0,0.01230147]
[1772865923128,0.00022001,67943.0,67936.0,0.07359868]
[1772865923326,0.00022001,67943.0,67937.0,0.01230147]
[1772865925273,0.00222001,67950.0,67939.0,0.01230147]
[1772865927002,0.00222001,67950.0,67940.0,0.01230147]
[1772865927268,0.00222001,67950.0,67941.0,0.07359326]
[1772865927473,0.05815356,67947.0,67933.0,0.07360193]
[1772865927740,0.00148,67949.0,67934.0,0.01230147]
[1772865927741,0.00868169,67948.0,67934.0,0.01230147]
[1772865928313,0.05815356,67948.0,67934.0,0.01230147]
[1772865928590,0.06473242,67947.0,67933.0,0.07508193]
[1772865929335,0.06473242,67947.0,67933.0,0.0873834]
[1772865929529,0.06473242,67947.0,67934.0,0.001]
[1772865929729,0.00657886,67947.0,67934.0,0.01330147]
[1772865930128,0.0750646,67949.0,67934.0,0.01330147]
[1772865931027,0.0750646,67949.0,67934.0,0.01230147]
[1772865931687,0.0750646,67949.0,67935.0,0.07359976]
[1772865932038,0.0750646,67949.0,67936.0,0.01230147]
[1772865933815,0.0750646,67949.0,67937.0,0.07359759]
[1772865934139,0.00148,67949.0,67937.0,0.07359759]
[1772865937545,0.00148,67949.0,67937.0,0.08589906]
[1772865938026,0.07506463,67949.0,67937.0,0.07359759]
[1772865938179,0.05796028,67948.0,67936.0,0.07359759]
[1772865938347,0.00636972,67947.0,67936.0,0.07359759]
[1772865938791,0.00636972,67947.0,67937.0,0.0002]
[1772865940085,0.06428498,67947.0,67937.0,0.0002]
[1772865940283,0.13787211,67947.0,67937.0,0.0002]
[1772865942541,0.0063247,67947.0,67937.0,0.0002]
[1772865942787,0.07358633,67948.0,67937.0,0.0002]
[1772865947157,0.07358633,67948.0,67937.0,0.07379759]
[1772865955879,0.07358633,67948.0,67937.0,0.0002]
[1772865956088,0.07358633,67948.0,67926.0,0.07375858]
[1772865956089,0.05796028,67945.0,67926.0,0.07375858]
[1772865956294,0.05796028,67941.0,67926.0,0.07375858]
[1772865956425,0.00743853,67940.0,67926.0,0.07375858]
[1772865957250,0.00743853,67940.0,67926.0,0.08649534]
[1772865957420,0.00743853,67940.0,67937.0,0.0002]
[1772865958056,0.08103386,67940.0,67937.0,0.0002]
[1772865959119,0.08197495,67940.0,67930.0,0.0002]
[1772865960092,0.08197495,67940.0,67926.0,0.08649534]
[1772865960093,0.05615296,67937.0,67926.0,0.00015]
[1772865960401,0.00587696,67936.0,67926.0,0.00015]
[1772865960599,0.00587696,67936.0,67926.0,0.07375938]
[1772865962402,0.07359976,67935.0,67926.0,0.00015]
[1772865962599,0.00148,67934.0,67926.0,0.00015]
[1772865965564,0.00148,67934.0,67926.0,0.00035]
[1772865967386,0.00148,67934.0,67927.0,0.07360843]
[1772865967505,0.07508099,67934.0,67926.0,0.07395911]
[1772865968279,0.07508099,67934.0,67925.0,0.0002]
[1772865968490,0.05626735,67931.0,67919.0,0.0002]
[1772865968871,0.07508099,67934.0,67919.0,0.0002]
[1772865968872,0.06196524,67930.0,67919.0,0.0002]
[1772865969618,0.07360626,67929.0,67919.0,0.0002]
[1772865969936,0.00148,67928.0,67919.0,0.0002]
[1772865973468,0.07508741,67928.0,67919.0,0.0002]
[1772865975174,0.13688952,67928.0,67919.0,0.0002]
[1772865976122,0.08062217,67928.0,67919.0,0.0002]
[1772865978059,0.00701476,67928.0,67919.0,0.0002]
[1772865978419,0.00148,67928.0,67919.0,0.0002]
[1772865979471,0.07360218,67933.0,67919.0,0.0002]
[1772865979472,0.06170714,67946.0,67921.0,0.05240064]
[1772865979626,0.00148,67938.0,67925.0,0.05240064]
[1772865979824,0.0004,67938.0,67928.0,0.01190023]
[1772865980029,0.0004,67938.0,67929.0,0.01190023]
[1772865980638,0.00148,67939.0,67931.0,0.01190023]
[1772865980837,0.00148,67939.0,67932.0,0.01190023]
[1772865981041,0.00148,67941.0,67932.0,0.01190023]
[1772865981515,0.00148,67940.0,67934.0,0.01190023]
[1772865981714,0.00022001,67938.0,67934.0,0.01190023]
[1772865982356,0.00015,67943.0,67934.0,0.05240064]
[1772865982532,0.00015,67943.0,67933.0,0.07360193]
[1772865982533,0.00047418,67945.0,67935.0,0.05240064]
[1772865982735,0.00047418,67945.0,67937.0,0.01190023]
[1772865983340,0.00148,67944.0,67937.0,0.01190023]
[1772865983741,0.00148,67944.0,67938.0,0.07359651]
[1772865984189,0.00148,67944.0,67937.0,0.01190023]
[1772865984395,0.00047418,67945.0,67937.0,0.01190023]
[1772865984723,0.00148,67944.0,67937.0,0.01190023]
[1772865984926,0.07406324,67945.0,67937.0,0.01190023]
[1772865985048,0.00148,67944.0,67937.0,0.01190023]
[1772865986211,0.00148,67944.0,67937.0,0.08549746]
[1772865986444,0.00148,67944.0,67938.0,0.01190023]
[1772865988366,0.00148,67944.0,67940.0,0.01190023]
[1772865990233,0.00170001,67944.0,67940.0,0.01190023]
[1772865992915,0.08041793,67944.0,67932.0,0.07360301]
[1772865993085,0.05506861,67941.0,67928.0,0.07360653]
[1772865993262,0.00512784,67940.0,67928.0,0.07360653]
[1772865994469,0.07381009,67944.0,67929.0,0.01190023]
[1772865994681,0.00148,67943.0,67929.0,0.01190023]
[1772865995154,0.07381009,67944.0,67930.0,0.08550541]
[1772865995155,0.00148,67942.0,67930.0,0.08550541]
[1772865995369,0.00148,67941.0,67930.0,0.08550541]
[1772865997545,0.00148,67940.0,67930.0,0.08550541]
[1772865997942,0.00148,67940.0,67931.0,0.01190898]
[1772865999115,0.07381009,67944.0,67931.0,0.01190898]
[1772865999335,0.07381043,67944.0,67932.0,0.07360301]
[1772865999544,0.00148,67943.0,67933.0,0.01190898]
[1772865999989,0.00148,67942.0,67933.0,0.01190898]
[1772866000446,0.07381043,67944.0,67933.0,0.01190898]
[1772866000645,0.07381043,67944.0,67932.0,0.07360301]
[1772866000646,0.00148,67943.0,67932.0,0.07360301]
[1772866001675,0.07359218,67942.0,67930.0,0.0002]
[1772866001879,0.07359218,67942.0,67927.0,0.07360835]
[1772866001880,0.00491867,67938.0,67927.0,0.07360835]
[1772866002081,0.00148,67937.0,67927.0,0.07360835]
[1772866002457,0.00148,67936.0,67928.0,0.01190898]
[1772866003692,0.00148,67937.0,67928.0,0.01190898]
[1772866004100,0.07359218,67942.0,67928.0,0.01190898]
[1772866004101,0.07359218,67942.0,67930.0,0.01190898]
[1772866004443,0.00148,67937.0,67930.0,0.01190898]
[1772866004606,0.07359218,67942.0,67930.0,0.01190898]
[1772866004790,0.00148,67937.0,67930.0,0.01190898]
[1772866005193,0.00148,67938.0,67930.0,0.01190898]
[1772866007019,0.00148,67938.0,67930.0,0.08551341]
[1772866007160,0.00148,67938.0,67931.0,0.01190898]
[1772866007589,0.00148,67940.0,67931.0,0.01190898]
[1772866008152,0.00148,67939.0,67931.0,0.01190898]
[1772866009261,0.00022001,67944.0,67935.0,0.01190898]
[1772866009393,0.00195418,67945.0,67932.0,0.07360301]
[1772866009394,0.00195418,67945.0,67937.0,0.01190898]
[1772866011230,0.00148,67947.0,67939.0,0.01190898]
[1772866013898,0.07506692,67947.0,67938.0,0.07359651]
[1772866014096,0.07506692,67947.0,67938.0,0.07371198]
[1772866014782,0.07506692,67947.0,67928.0,0.0002]
[1772866014783,0.00464645,67945.0,67929.0,0.07360594]
[1772866015009,0.05506861,67943.0,67929.0,0.07360594]
[1772866015180,0.00462268,67942.0,67929.0,0.07360594]
[1772866015480,0.00148,67941.0,67929.0,0.07360594]
[1772866015679,0.07507395,67941.0,67930.0,0.0002]
[1772866016258,0.00148,67941.0,67930.0,0.0002]
[1772866016471,0.00148,67941.0,67930.0,0.01210898]
[1772866018496,0.07507334,67941.0,67931.0,0.07360409]
[1772866020249,0.07507334,67941.0,67926.0,0.00163]
[1772866020372,0.07507334,67941.0,67919.0,0.07381648]
[1772866020373,0.00496126,67937.0,67921.0,0.0738149]
[1772866020709,0.00496126,67932.0,67921.0,0.0002]
[1772866020908,0.00148,67931.0,67921.0,0.0002]
[1772866024644,0.07359436,67940.0,67922.0,0.01215631]
[1772866024846,0.07359436,67940.0,67925.0,0.05369082]
[1772866025045,0.00022001,67944.0,67929.0,0.05369082]
[1772866025331,0.00148,67943.0,67934.0,0.01215631]
[1772866025523,0.00148,67943.0,67936.0,0.01215631]
[1772866025949,0.00148,67942.0,67936.0,0.01215631]
[1772866026358,0.00163,67943.0,67936.0,0.05378182]
[1772866026558,0.00163,67943.0,67937.0,0.01215631]
[1772866026755,0.00163,67943.0,67939.0,0.01215631]
[1772866027845,0.00476979,67941.0,67929.0,0.07376023]
[1772866028462,0.07359218,67942.0,67929.0,0.07376023]
[1772866028662,0.07359218,67942.0,67929.0,0.08542637]
[1772866031663,0.07359218,67942.0,67929.0,0.01182014]
[1772866031875,0.07359218,67942.0,67923.0,0.00148]
[1772866031876,0.05216561,67938.0,67924.0,0.07361108]
[1772866032069,0.00615125,67937.0,67924.0,0.07361108]
[1772866033169,0.00615125,67937.0,67922.0,0.07361168]
[1772866033170,0.07359868,67936.0,67922.0,0.07361168]
[1772866033517,0.07359868,67936.0,67922.0,0.08527782]
[1772866037661,0.07359868,67936.0,67922.0,0.01166614]
[1772866038270,0.00452422,67935.0,67921.0,0.0002]
[1772866039390,0.1259843,67936.0,67921.0,0.01186614]
[1772866039391,0.07381869,67936.0,67921.0,0.01186614]
[1772866042161,0.00442634,67930.0,67921.0,0.0002]
[1772866042356,0.00148,67929.0,67921.0,0.0002]
[1772866043037,0.00440194,67928.0,67919.0,0.0002]
[1772866044182,0.00440194,67928.0,67916.0,0.0025]
[1772866044183,0.00437881,67926.0,67916.0,0.0025]
[1772866044422,0.00437881,67925.0,67915.0,0.0002]
[1772866047004,0.00432811,67923.0,67912.0,0.000354]
[1772866047210,0.00432811,67921.0,67911.0,0.0002]
[1772866047595,0.04730204,67922.0,67911.0,0.0002]
[1772866047797,0.00148,67921.0,67913.0,0.05369082]
[1772866048103,0.00154228,67921.0,67914.0,0.01166614]
[1772866048828,0.00163288,67921.0,67914.0,0.01166614]
[1772866049128,0.07524834,67921.0,67914.0,0.01166614]
[1772866049939,0.07524834,67921.0,67912.0,0.07362365]
[1772866050317,0.07524834,67921.0,67911.0,0.07382568]
[1772866051114,0.00015288,67921.0,67911.0,0.07382568]
[1772866051317,0.00148,67920.0,67911.0,0.07382568]
[1772866051551,0.0015706,67920.0,67911.0,0.07382568]
[1772866052972,0.0015706,67920.0,67914.0,0.0002]
[1772866053889,0.07518703,67920.0,67914.0,0.0002]
[1772866059968,0.0015706,67920.0,67914.0,0.0002]
[1772866060177,0.0015706,67920.0,67914.0,0.08497209]
[1772866060963,0.00148,67919.0,67914.0,0.08497209]
[1772866061523,0.07509766,67919.0,67911.0,0.0002]
[1772866061733,0.07518826,67919.0,67908.0,0.0002]
[1772866061929,0.07518826,67919.0,67907.0,0.0002]
[1772866061930,0.00397144,67918.0,67907.0,0.0002]
[1772866062145,0.00397144,67917.0,67907.0,0.0002]
[1772866062805,0.00406204,67917.0,67907.0,0.0002]
[1772866063491,0.07362035,67916.0,67907.0,0.0002]
[1772866063684,0.07371095,67916.0,67907.0,0.0002]
[1772866072102,0.00022001,67920.0,67909.0,0.0498549]
[1772866072305,0.07383628,67920.0,67912.0,0.01114987]
[1772866072616,0.00148,67919.0,67915.0,0.01114987]
[1772866072960,0.00148,67918.0,67915.0,0.01114987]
[1772866073157,0.00148,67917.0,67915.0,0.01114987]
[1772866073529,0.00148,67921.0,67918.0,0.01114987]
[1772866073739,0.07402719,67927.0,67920.0,0.06100477]
[1772866073935,0.00148,67926.0,67920.0,0.06100477]
[1772866074477,0.00148,67925.0,67921.0,0.01114987]
[1772866074619,0.00148,67925.0,67916.0,0.12347525]
[1772866074821,0.00148,67925.0,67917.0,0.01114987]
[1772866075190,0.08338357,67924.0,67910.0,0.01114987]
[1772866075395,0.08338357,67924.0,67910.0,0.08483887]
[1772866079796,0.08360358,67924.0,67910.0,0.08483887]
[1772866082281,0.07383169,67924.0,67910.0,0.073689]
[1772866082425,0.00148,67923.0,67912.0,0.01160812]
[1772866082630,0.00148,67923.0,67913.0,0.01160812]
[1772866083229,0.07383169,67924.0,67915.0,0.01160812]
[1772866083536,0.00148,67923.0,67918.0,0.01160812]
[1772866083739,0.07383169,67924.0,67920.0,0.01160812]
[1772866083939,0.00148,67923.0,67920.0,0.01160812]
[1772866084261,0.07361168,67925.0,67920.0,0.01160812]
[1772866084262,0.00041871,67927.0,67920.0,0.01160812]
[1772866084460,0.00148,67926.0,67923.0,0.05210582]
[1772866084656,0.00148,67926.0,67925.0,0.01160812]
[1772866085378,0.07360529,67930.0,67925.0,0.05210582]
[1772866085579,0.00148,67929.0,67924.0,0.01160812]
[1772866085779,0.00148,67929.0,67926.0,0.01160812]
[1772866086022,0.0004,67925.0,67915.0,0.05210582]
[1772866086202,0.0004,67925.0,67918.0,0.01160812]
[1772866086379,0.0004,67925.0,67921.0,0.05210582]
[1772866086598,0.00148,67932.0,67924.0,0.05210582]
[1772866086808,0.00148,67931.0,67925.0,0.05210582]
[1772866087008,0.00148,67931.0,67927.0,0.01160812]
[1772866087181,0.00022001,67934.0,67928.0,0.01160812]
[1772866087383,0.00022001,67934.0,67929.0,0.01160812]
[1772866087662,0.00022001,67934.0,67930.0,0.05210582]
[1772866087838,0.07401523,67938.0,67927.0,0.07360823]
[1772866088131,0.00148,67933.0,67927.0,0.07360823]
[1772866088279,0.07381653,67938.0,67927.0,0.07360823]
[1772866088485,0.00148,67933.0,67927.0,0.07360823]
[1772866088881,0.00148,67932.0,67928.0,0.0125548]
[1772866089083,0.00148,67931.0,67928.0,0.0125548]
[1772866089304,0.00148,67931.0,67929.0,0.0125548]
[1772866089918,0.00148,67931.0,67930.0,0.0125548]
[1772866091082,0.00148,67932.0,67930.0,0.0125548]
[1772866094249,0.00148,67932.0,67928.0,0.0125548]
[1772866095602,0.00148,67932.0,67915.0,0.07362074]
[1772866095603,0.07360626,67929.0,67915.0,0.07362074]
[1772866095800,0.07360626,67929.0,67915.0,0.08617554]
[1772866096003,0.07360626,67929.0,67916.0,0.0125548]
[1772866097089,0.07360626,67929.0,67917.0,0.0125548]
[1772866097402,0.00148,67928.0,67917.0,0.0125548]
[1772866097556,0.07360523,67930.0,67918.0,0.0125548]
[1772866097762,0.00148,67929.0,67920.0,0.0125548]
[1772866097919,0.07508632,67929.0,67920.0,0.0125548]
[1772866099946,0.00148,67928.0,67921.0,0.07361493]
[1772866100985,0.00170001,67928.0,67921.0,0.07361493]
[1772866102033,0.00170001,67928.0,67913.0,0.12592955]
[1772866102034,0.00170001,67928.0,67916.0,0.0125548]
[1772866104759,0.00170001,67928.0,67917.0,0.07361927]
[1772866104974,0.00148,67927.0,67919.0,0.0125548]
[1772866107663,0.00148,67927.0,67920.0,0.07361601]
[1772866107865,0.00148,67927.0,67921.0,0.0125548]
[1772866108094,0.07360951,67926.0,67914.0,0.0125548]
[1772866108315,0.07360951,67926.0,67913.0,0.07382406]
[1772866108316,0.05018736,67923.0,67913.0,0.0002012]
[1772866108624,0.06305858,67922.0,67913.0,0.0002012]
[1772866108908,0.00148,67921.0,67913.0,0.0002012]
[1772866109204,0.05166736,67921.0,67917.0,0.0002]
[1772866109786,0.07509581,67921.0,67917.0,0.0002]
[1772866114381,0.07509581,67921.0,67913.0,0.0002012]
[1772866116658,0.07509581,67921.0,67917.0,0.0002]
[1772866118109,0.01153095,67920.0,67917.0,0.0002]
[1772866122714,0.01153095,67916.0,67905.0,0.07363154]
[1772866122918,0.01153095,67916.0,67907.0,0.00031556]
[1772866122919,0.01153095,67914.0,67907.0,0.00031556]
[1772866123480,0.01153095,67914.0,67904.0,0.07363305]
[1772866123481,0.01153095,67914.0,67910.0,0.0002]
[1772866123709,0.01153095,67914.0,67903.0,0.07383419]
[1772866123710,0.01153095,67913.0,67903.0,0.07383419]
[1772866124958,0.07362469,67912.0,67903.0,0.0002]
[1772866125163,0.08515564,67912.0,67903.0,0.0002]
[1772866127231,0.08501017,67912.0,67903.0,0.0002]
[1772866129517,0.084856,67912.0,67903.0,0.0002]
[1772866131305,0.05215207,67911.0,67891.0,0.07364692]
[1772866131484,0.01153095,67906.0,67892.0,0.07409574]
[1772866131658,0.01153095,67904.0,67892.0,0.07409574]
[1772866133487,0.07363444,67903.0,67892.0,0.07409574]
[1772866133967,0.07363444,67903.0,67888.0,0.01266207]
[1772866133968,0.04728616,67902.0,67888.0,0.0002271]
[1772866134190,0.01153095,67899.0,67888.0,0.07387751]
[1772866134350,0.01301095,67898.0,67888.0,0.07387751]
[1772866134524,0.01301095,67898.0,67888.0,0.0002271]
[1772866135484,0.07364095,67897.0,67888.0,0.0002271]
[1772866135679,0.07364095,67897.0,67889.0,0.07959924]
[1772866136456,0.07364095,67897.0,67889.0,0.00595]
[1772866137010,0.0734867,67897.0,67889.0,0.00595]
[1772866138483,0.07333243,67897.0,67889.0,0.00595]
[1772866139521,0.07333243,67897.0,67889.0,0.07959946]
[1772866141041,0.00148,67896.0,67889.0,0.07959946]
[1772866141442,0.00015,67892.0,67889.0,0.07959946]
[1772866141658,0.00148,67896.0,67889.0,0.07959946]
[1772866142685,0.00148,67896.0,67889.0,0.07998481]
[1772866143293,0.0751228,67896.0,67889.0,0.07998481]
[1772866144198,0.0751228,67896.0,67889.0,0.00633535]
[1772866144397,0.01207483,67895.0,67882.0,0.07385701]
[1772866144670,0.01207483,67894.0,67882.0,0.07385701]
[1772866145535,0.07364529,67893.0,67882.0,0.0002]
[1772866146168,0.00148,67892.0,67882.0,0.0002]
[1772866147760,0.07512716,67892.0,67882.0,0.0002]
[1772866150521,0.07497291,67892.0,67881.0,0.07665934]
[1772866153581,0.00148,67891.0,67881.0,0.07665934]
[1772866157284,0.00148,67891.0,67881.0,0.07685934]
[1772866157980,0.07512766,67891.0,67881.0,0.07685934]
[1772866159149,0.07364766,67891.0,67881.0,0.07685934]
[1772866159492,0.00148,67890.0,67882.0,0.01220198]
[1772866159696,0.00022001,67896.0,67883.0,0.05451854]
[1772866159905,0.00148,67891.0,67884.0,0.01220198]
[1772866160655,0.00022001,67896.0,67884.0,0.01220198]
[1772866161013,0.00148,67895.0,67884.0,0.01220198]
[1772866161316,0.07363667,67901.0,67887.0,0.0736518]
[1772866161468,0.07363667,67901.0,67888.0,0.01220198]
[1772866161907,0.00148,67900.0,67888.0,0.01220198]
[1772866162142,0.07385508,67903.0,67888.0,0.01220198]
[1772866162143,0.00148,67899.0,67889.0,0.01220198]
[1772866162960,0.00170001,67903.0,67890.0,0.05451854]
[1772866163158,0.00170001,67903.0,67891.0,0.01220198]
[1772866163615,0.00170001,67903.0,67892.0,0.07364637]